fUST/lending_fUST_20250827
["ID","MTS","AMOUNT","RATE_DAILY","PERIOD"]
[381525412,1756251053134,-151.0,0.00027442,7]
[381525413,1756251053144,-151.0,0.00027442,7]
[381525414,1756251053154,-151.0,0.00027442,7]
[381525415,1756251053164,-151.0,0.00027442,7]
[381525416,1756251053174,-198.0,0.00027442,7]
[381525417,1756251053183,-151.0,0.00027442,7]
[381525418,1756251053193,-151.0,0.00027442,7]
[381525419,1756251053202,-151.0,0.00027442,7]
[381525420,1756251053211,-198.0,0.00027442,7]
[381525421,1756251053221,-151.95767776,0.00027442,7]
[381525422,1756251053230,-151.0,0.00027442,7]
[381525423,1756251053240,-1962.99830423,0.00027443,2]
[381525424,1756251053249,-163001.27272693,0.00027443,2]
[381525425,1756251076032,2471.39825233,0.000199,2]
[381525426,1756251076189,2471.39825206,0.00021627,2]
[381525427,1756251076260,2471.39825206,0.00023353,2]
[381525428,1756251076396,2471.39825206,0.0002508,2]
[381525430,1756251262625,2159.95340535,0.000199,2]
[381525431,1756251262735,2159.95340513,0.00021627,2]
[381525432,1756251262847,2159.95340513,0.00023353,2]
[381525433,1756251262962,2159.95340513,0.0002508,2]
[381525434,1756251448425,2168.50253882,0.000199,2]
[381525435,1756251448476,2168.50253867,0.00021627,2]
[381525436,1756251448597,2168.50253867,0.00023353,2]
[381525437,1756251448732,2168.50253867,0.0002508,2]
[381525438,1756251624648,2197.68786175,0.000199,2]
[381525439,1756251624714,2197.68786148,0.00021627,2]
[381525440,1756251624991,2197.68786148,0.00023353,2]
[381525441,1756251625097,268.69617012,0.0002508,2]
[381525442,1756251625130,1928.99169136,0.0002508,2]
[381525443,1756251630296,9147.9,0.00031796,49]
[381525444,1756251686633,-165.28364551,0.00026127,2]
[381525445,1756251807711,2203.13138035,0.000199,2]
[381525446,1756251807838,2203.13138015,0.00021627,2]
[381525447,1756251807956,2203.13138015,0.00023353,2]
[381525448,1756251808087,2203.13138015,0.0002508,2]
[381525449,1756251808544,-12.74072449,0.00026127,2]
[381525451,1756251901130,608.270455,0.00013699,2]
[381525452,1756251901397,608.270455,0.00020187,2]
[381525453,1756251922839,-608.270455,0.00026676,2]
[381525454,1756251922871,-152.596967,0.00026806,6]
[381525455,1756251922907,-2203.13138015,0.00026806,6]
[381525456,1756251932579,-23563.33345741,0.00027,7]
[381525457,1756251963945,-300.0,0.00026999,2]
[381525458,1756251963978,-3013.50102741,0.00027,7]
[381525459,1756251964133,-3373.00794518,0.00027,7]
[381525460,1756251964164,-232.53539143,0.00027,7]
[381525461,1756251969971,160.0,0.00027,7]
[381525462,1756251971716,217.18350301,0.00027,7]
[381525463,1756251975574,160.0,0.00027,7]
[381525464,1756251986910,2506.86624053,0.000199,2]
[381525465,1756251987038,2506.86624049,0.00021627,2]
[381525466,1756251987199,2506.86624049,0.00023353,2]
[381525467,1756251987347,2479.41127849,0.0002508,2]
[381525468,1756251987379,27.454962,0.0002508,2]
[381525469,1756252016228,448.69,0.00027397,120]
[381525470,1756252041361,-319.4967433,0.00026806,6]
[381525471,1756252176434,156.8,0.000199,2]
[381525472,1756252176464,2465.80985102,0.000199,2]
[381525473,1756252176565,2622.60985081,0.00021627,2]
[381525474,1756252176721,2622.60985081,0.00023353,2]
[381525475,1756252176860,2622.60985081,0.0002508,2]
[381525478,1756252232467,-2622.60985081,0.00026806,6]
[381525479,1756252232478,-181.87502352,0.000271,90]
[381525480,1756252232490,-1000.0,0.000272,10]
[381525482,1756252232499,-160.0,0.0002723,2]
[381525483,1756252232508,-1200.0,0.00027231,2]
[381525484,1756252232517,-592.02291728,0.00027232,2]
[381525486,1756252232526,-3312.90499534,0.00027232,2]
[381525487,1756252232536,-390.01,0.00027312,10]
[381525488,1756252232545,-325.01,0.00027312,10]
[381525489,1756252232555,-300.0,0.00027314,2]
[381525490,1756252232565,-300.0,0.00027314,2]
[381525491,1756252232576,-300.0,0.00027314,2]
[381525492,1756252232586,-11728.57868942,0.00027315,2]
[381525493,1756252232595,-151.0,0.00027315,2]
[381525494,1756252232604,-201.93286099,0.00027315,2]
[381525495,1756252232613,-151.0,0.00027315,2]
[381525496,1756252232622,-151.0,0.00027315,2]
[381525497,1756252232632,-151.0,0.00027315,2]
[381525498,1756252232642,-151.0,0.00027315,2]
[381525499,1756252232651,-151.0,0.00027315,2]
[381525500,1756252232660,-151.0,0.00027315,2]
[381525501,1756252232669,-151.0,0.00027315,2]
[381525502,1756252232678,-151.0,0.00027315,2]
[381525503,1756252232687,-151.0,0.00027315,2]
[381525504,1756252232696,-151.0,0.00027315,2]
[381525505,1756252232707,-151.0,0.00027315,2]
[381525506,1756252232717,-226.88894236,0.00027321,2]
[381525507,1756252232726,-506.40871369,0.00027321,2]
[381525508,1756252232735,-506.40871369,0.00027321,2]
[381525509,1756252232744,-506.40871369,0.00027321,2]
[381525510,1756252232753,-21694.49333714,0.00027322,2]
[381525747,1756252240402,-199.0,0.00027,90]
[381525748,1756252240412,-506.40871369,0.00027321,2]
[381525749,1756252240421,-506.40871369,0.00027321,2]
[381525750,1756252240431,-506.40871369,0.00027321,2]
[381525751,1756252240440,-506.40871369,0.00027321,2]
[381525752,1756252240450,-506.40871369,0.00027321,2]
[381525753,1756252240459,-506.40871369,0.00027321,2]
[381525754,1756252240468,-506.40871369,0.00027321,2]
[381525755,1756252240478,-506.40871369,0.00027321,2]
[381525756,1756252240488,-17771.11812697,0.00027322,2]
[381525777,1756252246479,-39389.79304359,0.00027322,2]
[381525779,1756252246489,-10944.5043485,0.00027322,2]
[381525781,1756252246499,-505.57,0.00027322,3]
[381525783,1756252246508,-252.78,0.00027322,3]
[381525785,1756252246518,-758.38,0.00027322,3]
[381525787,1756252246527,-24003.02850562,0.00027332,2]
[381525806,1756252246696,-8620.33999996,0.00027332,2]
[381525808,1756252246707,-4811.99439955,0.00027332,2]
[381525813,1756252253590,-228.33888083,0.0002699,2]
[381525814,1756252258991,-1015.46639343,0.0002699,2]
[381525815,1756252259081,-10000.01,0.0002699,2]
[381525816,1756252259234,-10000.01,0.0002699,2]
[381525817,1756252269502,-300.0,0.00026989,2]
[381525818,1756252269547,-9400.01,0.0002699,2]
[381525819,1756252269875,-4080.00884775,0.0002699,2]
[381525820,1756252269899,-1839.9923045,0.0002699,2]
[381525821,1756252293171,-236.997196,0.00026195,2]
[381525822,1756252296179,-118.653478,0.00026195,2]
[381525825,1756252351760,2382.27334272,0.000199,2]
[381525826,1756252351894,2382.27334256,0.00021627,2]
[381525827,1756252352024,2382.27334256,0.00023353,2]
[381525828,1756252352148,2382.27334256,0.0002508,2]
[381525829,1756252398719,-203.00280399,0.00025216,7]
[381525830,1756252400941,1515.1,0.000252,2]
[381525831,1756252490313,-152.0,0.00025221,7]
[381525832,1756252494221,-24.53,0.00025221,7]
[381525833,1756252527420,2100.91597391,0.000199,2]
[381525834,1756252527574,2100.91597376,0.00021627,2]
[381525835,1756252527706,2100.91597376,0.00023353,2]
[381525836,1756252527853,2100.91597376,0.0002508,2]
[381525837,1756252548414,-195.47,0.00026134,2]
[381525838,1756252552520,-41.527196,0.00026134,2]
[381525839,1756252626324,-216.38997919,0.00025922,2]
[381525840,1756252630235,-240.87807954,0.00025922,2]
[381525841,1756252633587,-134.73194127,0.00025922,2]
[381525842,1756252702956,-223.68295744,0.00026051,2]
[381525843,1756252707972,-34.23421775,0.00026051,2]
[381525844,1756252707997,-130.76578225,0.00026151,2]
[381525845,1756252710031,-48.48394275,0.00026151,2]
[381525846,1756252717258,165.0,0.000252,2]
[381525847,1756252717801,1854.67889917,0.000199,2]
[381525848,1756252717936,1854.67889891,0.00021627,2]
[381525849,1756252718088,1854.67889891,0.00023353,2]
[381525850,1756252718208,1854.67889891,0.0002508,2]
[381525851,1756252787534,-544.72390026,0.00026082,2]
[381525852,1756252789761,-51.92722874,0.00026082,2]
[381525853,1756252790909,593.20784301,0.000252,2]
[381525854,1756252853791,-252.86503594,0.00026004,2]
[381525855,1756252855369,-168.51794038,0.00026004,2]
[381525856,1756252857021,-334.15266481,0.00026004,2]
[381525857,1756252858666,-290.73811895,0.00026004,2]
[381525858,1756252864586,-156.43067086,0.00026004,2]
[381525859,1756252866267,-430.26932914,0.00026004,2]
[381525860,1756252866917,1254.63165968,0.000252,2]
[381525861,1756252869105,-182.45,0.00026004,2]
[381525862,1756252872560,-300.0,0.00026004,2]
[381525863,1756252882245,912.71932914,0.000252,2]
[381525864,1756252883405,-151.16803761,0.00026004,2]
[381525865,1756252886293,-324.5473304,0.00026004,2]
[381525866,1756252890645,-162.48083922,0.00026004,2]
[381525867,1756252892817,1612.80504578,0.000199,2]
[381525868,1756252892965,1612.80504572,0.00021627,2]
[381525869,1756252893358,1612.80504572,0.00023353,2]
[381525870,1756252893489,-152.0,0.00026004,2]
[381525871,1756252893680,1612.80504572,0.0002508,2]
[381525872,1756252895141,-194.76254165,0.00026004,2]
[381525873,1756252897980,-193.76885521,0.00026004,2]
[381525874,1756252898077,790.19620723,0.000252,2]
[381525875,1756252901615,-25.41568583,0.00026004,2]
[381525876,1756253054591,-151.0,0.00026092,2]
[381525877,1756253056238,-160.0,0.00026092,2]
[381525878,1756253061343,-259.21398912,0.00026092,2]
[381525879,1756253063555,-178.93960609,0.00026092,2]
[381525880,1756253065943,-167.07601088,0.00026092,2]
[381525881,1756253069324,-158.5635418,0.00026092,2]
[381525882,1756253072564,1431.72018975,0.000199,2]
[381525883,1756253072700,1431.72018973,0.00021627,2]
[381525884,1756253072852,-170.76073732,0.00026092,2]
[381525885,1756253072996,1431.72018973,0.00023353,2]
[381525886,1756253073109,1431.72018973,0.0002508,2]
[381525887,1756253080516,-151.25984565,0.00026092,2]
[381525888,1756253086071,-178.06657854,0.00026092,2]
[381525889,1756253089368,-280.96338507,0.00026092,2]
[381525890,1756253094033,-281.461455,0.00026092,2]
[381525891,1756253098088,-260.29113035,0.00026092,2]
[381525892,1756253102324,177.48799263,0.000252,2]
[381525893,1756253102350,252.30838389,0.000252,2]
[381525894,1756253138119,-295.11622178,0.00026092,2]
[381525895,1756253138145,-168.95,0.00026316,2]
[381525896,1756253138174,-220.0,0.00026557,2]
[381525897,1756253138210,-117.4923407,0.00026806,6]
[381525899,1756253215392,553.335223,0.00013699,2]
[381525900,1756253215614,553.335223,0.00020187,2]
[381525901,1756253227201,10000.0,0.000252,2]
[381525902,1756253247951,1254.11109581,0.000199,2]
[381525903,1756253248139,1254.11109555,0.00021627,2]
[381525904,1756253248251,1254.11109555,0.00023353,2]
[381525905,1756253248403,1254.11109555,0.0002508,2]
[381525906,1756253248701,-186.42067677,0.00025778,2]
[381525907,1756253251081,-161.82640438,0.00026152,2]
[381525908,1756253253210,-245.93297667,0.00026152,2]
[381525909,1756253254615,4983.56561754,0.000252,2]
[381525910,1756253254650,3016.43438246,0.000252,2]
[381525911,1756253315536,-344.44938106,0.00025961,2]
[381525912,1756253321331,-152.0,0.00025914,2]
[381525913,1756253325078,-153.55238351,0.00025914,2]
[381525914,1756253327827,-169.55061894,0.00025914,2]
[381525915,1756253329480,-90.92676195,0.00025914,2]
[381525916,1756253329504,-152.32154594,0.00025961,2]
[381525917,1756253349103,-286.77912298,0.000253,2]
[381525918,1756253407860,-151.0,0.00026557,2]
[381525919,1756253407887,-553.335223,0.00026676,2]
[381525920,1756253407913,-181.87502352,0.000268,89]
[381525921,1756253407958,-1254.11109555,0.00026806,6]
[381525922,1756253407984,-1562.715075,0.000269,2]
[381525923,1756253408010,-300.0,0.00027121,2]
[381525924,1756253408065,-300.0,0.00027121,2]
[381525925,1756253408100,-300.0,0.00027121,2]
[381525926,1756253408144,-1200.0,0.00027121,2]
[381525927,1756253408185,-473.61833384,0.00027122,2]
[381525928,1756253408219,-2208.60333022,0.00027122,2]
[381525929,1756253408244,-321.2,0.0002718,2]
[381525930,1756253408280,-8321.57,0.000272,2]
[381525931,1756253408310,-270.84,0.00027202,10]
[381525932,1756253408339,-500.0,0.00027204,2]
[381525933,1756253408365,-500.0,0.00027204,2]
[381525934,1756253408396,-500.0,0.00027204,2]
[381525935,1756253408422,-500.0,0.00027204,2]
[381525936,1756253408447,-500.0,0.00027204,2]
[381525937,1756253408472,-152.61241081,0.00027204,2]
[381525938,1756253408497,-500.0,0.00027204,2]
[381525939,1756253408521,-494.89361112,0.00027204,2]
[381525940,1756253408549,-500.0,0.00027204,2]
[381525941,1756253408575,-500.0,0.00027204,2]
[381525942,1756253408599,-500.0,0.00027204,2]
[381525943,1756253408639,-500.0,0.00027204,2]
[381525944,1756253408669,-168.5299246,0.00027204,2]
[381525945,1756253408710,-526.42475252,0.00027204,2]
[381525946,1756253408765,-349.70363723,0.00027204,2]
[381525947,1756253408810,-530.04980173,0.00027204,2]
[381525948,1756253408854,-500.0,0.00027204,2]
[381525949,1756253408883,-500.0,0.00027204,2]
[381525950,1756253408908,-500.0,0.00027204,2]
[381525951,1756253408933,-500.0,0.00027204,2]
[381525952,1756253408956,-500.0,0.00027204,2]
[381525953,1756253408979,-500.0,0.00027204,2]
[381525954,1756253409004,-500.0,0.00027204,2]
[381525955,1756253409029,-500.0,0.00027204,2]
[381525956,1756253409054,-500.0,0.00027204,2]
[381525957,1756253409078,-651.55190067,0.00027204,2]
[381525958,1756253409103,-500.0,0.00027204,2]
[381525959,1756253409128,-500.0,0.00027204,2]
[381525960,1756253409153,-500.0,0.00027204,2]
[381525961,1756253409178,-500.0,0.00027204,2]
[381525962,1756253409202,-500.0,0.00027204,2]
[381525963,1756253409227,-500.0,0.00027204,2]
[381525964,1756253409253,-500.0,0.00027204,2]
[381525965,1756253409277,-500.0,0.00027204,2]
[381525966,1756253409301,-500.0,0.00027204,2]
[381525967,1756253409324,-500.0,0.00027204,2]
[381525968,1756253409348,-500.0,0.00027204,2]
[381525969,1756253409372,-500.0,0.00027204,2]
[381525970,1756253409399,-500.0,0.00027204,2]
[381525971,1756253409425,-500.0,0.00027204,2]
[381525972,1756253409450,-225.15830583,0.00027204,2]
[381525973,1756253409474,-500.0,0.00027204,2]
[381525974,1756253409498,-500.0,0.00027204,2]
[381525975,1756253409523,-500.0,0.00027204,2]
[381525976,1756253409549,-500.0,0.00027204,2]
[381525977,1756253409758,-500.0,0.00027204,2]
[381525978,1756253409793,-650.0,0.00027204,2]
[381525979,1756253409817,-33171.59249825,0.00027205,2]
[381525980,1756253409844,-500.0,0.00027207,2]
[381525981,1756253409869,-158.82225965,0.00027207,2]
[381525982,1756253409897,-500.0,0.00027207,2]
[381525983,1756253409927,-500.0,0.00027207,2]
[381525984,1756253409955,-500.0,0.00027207,2]
[381525985,1756253409983,-500.0,0.00027207,2]
[381525986,1756253410011,-500.0,0.00027207,2]
[381525987,1756253410039,-500.0,0.00027207,2]
[381525988,1756253410068,-500.0,0.00027207,2]
[381525989,1756253410096,-500.0,0.00027207,2]
[381525990,1756253410127,-500.0,0.00027207,2]
[381525991,1756253410156,-500.0,0.00027207,2]
[381525992,1756253410187,-500.0,0.00027207,2]
[381525993,1756253410217,-500.0,0.00027207,2]
[381525994,1756253410246,-500.0,0.00027207,2]
[381525995,1756253410274,-500.0,0.00027207,2]
[381525996,1756253410306,-500.0,0.00027207,2]
[381525997,1756253410334,-500.0,0.00027207,2]
[381525998,1756253410362,-500.0,0.00027207,2]
[381525999,1756253410394,-500.0,0.00027207,2]
[381526000,1756253410425,-500.0,0.00027207,2]
[381526001,1756253410456,-500.0,0.00027207,2]
[381526002,1756253410489,-500.0,0.00027207,2]
[381526003,1756253410519,-500.0,0.00027207,2]
[381526004,1756253410550,-500.0,0.00027207,2]
[381526005,1756253410581,-500.0,0.00027207,2]
[381526006,1756253410610,-416.33379667,0.00027207,2]
[381526007,1756253410639,-500.0,0.00027207,2]
[381526008,1756253410668,-500.0,0.00027207,2]
[381526009,1756253410697,-500.0,0.00027207,2]
[381526010,1756253410727,-500.0,0.00027207,2]
[381526011,1756253410755,-500.0,0.00027207,2]
[381526012,1756253410781,-58578.3004914,0.00027212,2]
[381526013,1756253410807,-8130.2032304,0.00027212,2]
[381526014,1756253410832,-252.78,0.00027212,3]
[381526015,1756253410858,-758.36,0.00027212,3]
[381526016,1756253410883,-981.49915211,0.00027221,2]
[381526017,1756253410907,-42404.31614588,0.00027222,2]
[381526018,1756253427306,156.8,0.000199,2]
[381526019,1756253427336,901.54163776,0.000199,2]
[381526020,1756253427434,1058.34163755,0.00021627,2]
[381526021,1756253427586,1058.34163755,0.00023353,2]
[381526022,1756253427747,1058.34163755,0.0002508,2]
[381526055,1756253432734,-1058.34163755,0.00026806,6]
[381526057,1756253432743,-151.0,0.00027121,2]
[381526058,1756253432753,-151.0,0.00027121,2]
[381526059,1756253432762,-151.0,0.00027122,2]
[381526060,1756253432772,-151.0,0.000272,2]
[381526061,1756253432782,-652.65,0.00027202,10]
[381526062,1756253432792,-151.0,0.00027204,2]
[381526063,1756253432802,-151.0,0.00027205,2]
[381526064,1756253432811,-201.93286099,0.00027205,2]
[381526065,1756253432821,-151.0,0.00027205,2]
[381526066,1756253432829,-151.0,0.00027205,2]
[381526067,1756253432839,-177.50560328,0.00027205,2]
[381526068,1756253432848,-500.0,0.00027221,2]
[381526069,1756253432858,-500.0,0.00027221,2]
[381526072,1756253432868,-500.0,0.00027221,2]
[381526075,1756253432877,-500.0,0.00027221,2]
[381526077,1756253432887,-197365.06620063,0.00027222,2]
[381526080,1756253432927,-429.82180201,0.00027222,2]
[381526100,1756253440671,-185.39221385,0.00027221,2]
[381526101,1756253440681,-92.60778615,0.00027221,2]
[381526102,1756253441253,-112.91484021,0.00027221,2]
[381526103,1756253441262,-374.39764209,0.00027221,2]
[381526125,1756253446796,-125.60235791,0.00027221,2]
[381526126,1756253446806,-500.0,0.00027221,2]
[381526127,1756253446815,-500.0,0.00027221,2]
[381526128,1756253446825,-380.15519007,0.00027221,2]
[381526129,1756253446835,-490.74957606,0.00027221,2]
[381526130,1756253446844,-129800.79585148,0.00027222,2]
[381526131,1756253446854,-151.0,0.00027222,7]
[381526132,1756253446864,-151.0,0.00027222,7]
[381526133,1756253446873,-151.0,0.00027222,7]
[381526134,1756253446882,-172.299298,0.00027222,7]
[381526135,1756253446892,-172.299298,0.00027222,7]
[381526136,1756253446901,-172.299298,0.00027222,7]
[381526137,1756253446911,-172.299298,0.00027222,7]
[381526138,1756253446920,-177.907003,0.00027222,7]
[381526139,1756253446930,-177.907003,0.00027222,7]
[381526140,1756253446940,-177.907003,0.00027222,7]
[381526141,1756253446949,-177.907003,0.00027222,7]
[381526142,1756253446959,-151.0,0.00027222,7]
[381526143,1756253446968,-151.0,0.00027222,7]
[381526144,1756253446978,-151.0,0.00027222,7]
[381526145,1756253446987,-151.0,0.00027222,7]
[381526146,1756253446997,-151.820208,0.00027222,7]
[381526147,1756253447007,-151.0,0.00027222,7]
[381526148,1756253447016,-151.0,0.00027222,7]
[381526149,1756253447026,-151.0,0.00027222,7]
[381526150,1756253447036,-151.0,0.00027222,7]
[381526151,1756253447046,-151.0,0.00027222,7]
[381526152,1756253447055,-151.0,0.00027222,7]
[381526153,1756253447064,-151.0,0.00027222,7]
[381526154,1756253447074,-151.0,0.00027222,7]
[381526155,1756253447083,-206.147817,0.00027222,7]
[381526157,1756253447092,-151.0,0.00027222,7]
[381526159,1756253447102,-151.0,0.00027222,7]
[381526162,1756253447111,-151.0,0.00027222,7]
[381526165,1756253447121,-152.789417,0.00027222,7]
[381526167,1756253447130,-151.0,0.00027222,7]
[381526169,1756253447139,-151.0,0.00027222,7]
[381526171,1756253447149,-151.0,0.00027222,7]
[381526173,1756253447158,-151.0,0.00027222,7]
[381526175,1756253447167,-264.311636,0.00027222,7]
[381526177,1756253447177,-269.352011,0.00027222,7]
[381526178,1756253447186,-151.0,0.00027222,7]
[381526180,1756253447195,-151.0,0.00027222,7]
[381526182,1756253447205,-151.0,0.00027222,7]
[381526184,1756253447214,-151.0,0.00027222,7]
[381526187,1756253447223,-151.0,0.00027222,7]
[381526189,1756253447233,-151.0,0.00027222,7]
[381526191,1756253447242,-151.0,0.00027222,7]
[381526192,1756253447252,-181.106268,0.00027222,7]
[381526194,1756253447261,-151.0,0.00027222,7]
[381526196,1756253447270,-288.480503,0.00027222,7]
[381526197,1756253447280,-160.0,0.00027267,2]
[381526198,1756253447289,-500.0,0.00027273,2]
[381526199,1756253447300,-500.0,0.00027273,2]
[381526200,1756253447310,-564.49851929,0.00027273,2]
[381526201,1756253447320,-429.821802,0.0002728,2]
[381526202,1756253447329,-473.6183338,0.00027293,2]
[381526203,1756253447338,-470.52150041,0.00027315,2]
[381526204,1756253447348,-151.0,0.00027322,7]
[381526205,1756253447357,-151.0,0.00027322,7]
[381526206,1756253447366,-151.0,0.00027322,7]
[381526207,1756253447376,-151.0,0.00027322,7]
[381526208,1756253447386,-151.0,0.00027322,7]
[381526209,1756253447396,-151.0,0.00027322,7]
[381526210,1756253447407,-151.0,0.00027322,7]
[381526211,1756253447417,-151.0,0.00027322,7]
[381526212,1756253447426,-179.499633,0.00027322,7]
[381526213,1756253447437,-179.499633,0.00027322,7]
[381526214,1756253447447,-151.0,0.00027322,7]
[381526215,1756253447457,-179.499633,0.00027322,7]
[381526216,1756253447466,-179.499633,0.00027322,7]
[381526217,1756253447477,-187.788696,0.00027322,7]
[381526218,1756253447486,-187.788696,0.00027322,7]
[381526219,1756253447495,-187.788696,0.00027322,7]
[381526220,1756253447504,-187.788696,0.00027322,7]
[381526221,1756253447514,-417.15472785,0.00027322,7]
[381526222,1756253447523,-160.0,0.00027332,3]
[381526224,1756253447533,-160.0,0.00027332,3]
[381526226,1756253447542,-845.07960918,0.00027332,3]
[381526227,1756253447552,-529.4218694,0.00027332,3]
[381526229,1756253447561,-160.0,0.00027332,3]
[381526231,1756253447571,-326.0,0.00027332,3]
[381526232,1756253447582,-326.0,0.00027332,3]
[381526233,1756253447591,-326.0,0.00027332,3]
[381526234,1756253447601,-326.0,0.00027332,3]
[381526235,1756253447610,-326.0,0.00027332,3]
[381526236,1756253447620,-326.0,0.00027332,3]
[381526237,1756253447630,-394.18867494,0.00027332,3]
[381526238,1756253447639,-417.15472785,0.00027332,3]
[381526239,1756253447649,-1764.0,0.00027332,3]
[381526240,1756253447658,-1764.0,0.00027332,3]
[381526242,1756253447667,-1764.0,0.00027332,3]
[381526244,1756253447677,-1764.0,0.00027332,3]
[381526246,1756253447686,-1759.0,0.00027332,3]
[381526247,1756253447696,-500.91655306,0.00027373,2]
[381526248,1756253447707,-150.68470968,0.00027373,2]
[381526249,1756253447717,-501.28576784,0.00027373,2]
[381526250,1756253447727,-500.0,0.00027373,2]
[381526251,1756253447737,-151.0,0.000274,17]
[381526252,1756253447747,-191.429803,0.000274,2]
[381526253,1756253447757,-1000.0,0.000274,2]
[381526254,1756253447768,-7322.28756143,0.00027432,2]
[381526255,1756253447778,-1016.2754038,0.00027432,2]
[381526256,1756253447788,-1000.0,0.00027441,2]
[381526257,1756253447798,-1000.0,0.00027441,2]
[381526258,1756253447809,-1000.0,0.00027441,2]
[381526259,1756253447818,-1000.0,0.00027441,2]
[381526260,1756253447828,-1000.0,0.00027441,2]
[381526261,1756253447842,-170.055513,0.00027441,7]
[381526262,1756253447852,-151.0,0.00027441,7]
[381526263,1756253447861,-151.0,0.00027441,7]
[381526264,1756253447870,-845.07960918,0.00027441,7]
[381526265,1756253447880,-529.4218694,0.00027441,7]
[381526266,1756253447890,-151.0,0.00027441,7]
[381526267,1756253447900,-151.0,0.00027441,7]
[381526268,1756253447909,-151.0,0.00027442,7]
[381526269,1756253447919,-151.0,0.00027442,7]
[381526270,1756253447928,-151.0,0.00027442,7]
[381526271,1756253447937,-151.0,0.00027442,7]
[381526272,1756253447947,-151.0,0.00027442,7]
[381526273,1756253447956,-151.0,0.00027442,7]
[381526274,1756253447966,-151.0,0.00027442,7]
[381526275,1756253447975,-151.0,0.00027442,7]
[381526276,1756253447985,-172.299298,0.00027442,7]
[381526277,1756253447994,-172.299298,0.00027442,7]
[381526278,1756253448004,-172.299298,0.00027442,7]
[381526279,1756253448013,-172.299298,0.00027442,7]
[381526280,1756253448023,-151.0,0.00027442,2]
[381526281,1756253448032,-151.0,0.00027442,2]
[381526282,1756253448043,-177.907003,0.00027442,7]
[381526283,1756253448052,-177.907003,0.00027442,7]
[381526284,1756253448061,-177.907003,0.00027442,7]
[381526285,1756253448070,-177.907003,0.00027442,7]
[381526286,1756253448081,-151.0,0.00027442,7]
[381526287,1756253448092,-151.0,0.00027442,7]
[381526288,1756253448102,-151.0,0.00027442,7]
[381526289,1756253448112,-1000.0,0.00027442,2]
[381526290,1756253448122,-1000.0,0.00027442,2]
[381526291,1756253448132,-1000.0,0.00027442,2]
[381526292,1756253448142,-1000.0,0.00027442,2]
[381526293,1756253448151,-1000.0,0.00027442,2]
[381526294,1756253448162,-1000.0,0.00027442,2]
[381526295,1756253448172,-1000.0,0.00027442,2]
[381526296,1756253448182,-1000.0,0.00027442,2]
[381526297,1756253448192,-1000.0,0.00027442,2]
[381526298,1756253448201,-1000.0,0.00027442,2]
[381526299,1756253448211,-1000.0,0.00027442,2]
[381526300,1756253448220,-1000.0,0.00027442,2]
[381526301,1756253448229,-1000.0,0.00027442,2]
[381526302,1756253448239,-151.0,0.00027442,7]
[381526303,1756253448249,-151.0,0.00027442,7]
[381526304,1756253448258,-151.0,0.00027442,7]
[381526305,1756253448268,-198.0,0.00027442,2]
[381526306,1756253448277,-151.0,0.00027442,7]
[381526307,1756253448287,-223.03061618,0.00027442,2]
[381526308,1756253448296,-151.0,0.00027442,7]
[381526309,1756253448305,-151.0,0.00027442,7]
[381526310,1756253448314,-151.0,0.00027442,2]
[381526311,1756253448324,-151.76476339,0.00027442,2]
[381526312,1756253448334,-151.0,0.00027442,7]